Workbook

Sheet Formato
B2: FORMATO PARA MODIFICACIÓN DE ÓRDENES DE COMPRA
B3: Tienda Virtual del Estado Colombiano
B5: Número de Orden de Compra a modificar: | E5: 1429 | H5: Número de modificación de la Orden de Compra: | K5: 2
B8: Entidad Compradora: | D8: AGENCIA COLOMBIANA PARA LA REINTEGRACION DE PERSONSA Y GRUPOS ALZADOS EN ARMAS | L8: NIT: | M8: 900477169-8
B10: Nombre del solicitante: | D10: JUAN CARLOS HERRÁN VÉLEZ | K10: Teléfono de contacto: | M10: 5932211
B12: Proveedor : | D12: EMTELCO
B14: Tipo
B16: Tipo | D16: Modificación de la Orden de Compra
B18: Justificación de la modificación o de las acciones a realizar
B20: Brindar respuesta oportuna y eficiente a los PPR del Programa Nacional de Reintegración como sus familias y la comunidad, así: Información general de la ACR; Servicios y beneficios ofrecidos a los PPR; Trámites y consulta de PQRS-D; Inquietudes sobre desembolsos de apoyo a la reintegración; Orientación a las PPR, sus familias y la comunidad sobre trámites y procesos internos para acceder a los servicios y beneficios y Manejo de casos que involucran la seguridad de las PPR.
B22: Modificación información general
B24: Nombre del campo | D24: ¿Requiere modificación Si/No? | E24: Datos actuales | J24: Nuevos datos
B26: Actualizar supervisor | D26: NO | E26: Nombre del supervisor actual | J26: Nombre nuevo supervisor
B28: Fecha de vencimiento | D28: Ampliar fecha | E28: Fecha vencimiento actual | G28: 2016-04-30 | J28: Nueva fecha de vencimiento | L28: 2016-05-31
B30: Dirección y/o teléfono | D30: NO | E30: Dirección / teléfono actual | J30: Nueva dirección / teléfono
B32: Gravámenes adicionales | D32: NO | E32: Gravamen(es) actual | J32: Nuevo(s) gravamen(es)
A36: Modificación de artículos y servicios
A38: Tipo de modificación | B38: Información actual | K38: Nueva información
B39: Número de la línea según O.C. | C39: Nombre del artículo | E39: Cantidad | F39: Unidad de medida | G39: Precio unitario | H39: Total | I39: Información presupuestal | K39: Nombre del artículo | M39: Cantidad | N39: Unidad de medida | O39: Precio unitario | P39: Total | Q39: Información presupuestal
A40: Modificación de artículo o servicio | B40: 1 | C40: 54- Agente con puesto de trabajo - Agente general_Mes_Baja-oro | E40: 4 | F40: mes | G40: 16416803 | H40: =E40*G40 -> 65667212 | I40: 115416 | K40: =C40 -> 54- Agente con puesto de trabajo - Agente general_Mes_Baja-oro | M40: 1 | N40: mes | O40: 17565979 | P40: =M40*O40 -> 17565979 | Q40: 15716
A41: Modificación de artículo o servicio | B41: 2 | C41: 84- Agente con puesto de trabajo- Agente profesional_Mes_Alta-Oro-2 | E41: 4 | F41: mes | G41: 9468011 | H41: 37872044 | I41: 115416 | K41: 84- Agente con puesto de trabajo- Agente profesional_Mes_Alta-Oro-2 | M41: 1 | N41: mes | O41: 10130772 | P41: 10130772 | Q41: 15716
A42: Modificación de artículo o servicio | B42: 3 | C42: 49- Agente general con puesto de trabajo | E42: 4 | F42: mes | G42: 1369914 | H42: 5479656 | I42: 115416 | K42: 49- Agente general con puesto de trabajo | M42: 1 | N42: mes | O42: 1465808 | P42: 1465808 | Q42: 15716
A43: Modificación de artículo o servicio | B43: 4 | C43: 1308- Grabación anuncio IVR- Oro Anuncio para IVR | E43: 4 | F43: mes | G43: 23396 | H43: 93584 | I43: 115416 | K43: 1308- Grabación anuncio IVR- Oro Anuncio para IVR | M43: 1 | N43: mes | O43: 25034 | P43: 25034 | Q43: 15716
A44: Modificación de artículo o servicio | B44: 5 | C44: 1306- Horas desarrollo IVR- Oro | E44: 4 | F44: mes | G44: 40286 | H44: 161144 | I44: 115416 | K44: 1306- Horas desarrollo IVR- Oro | M44: 1 | N44: mes | O44: 43106 | P44: 43106 | Q44: 15716
A45: Modificación de artículo o servicio | B45: 6 | C45: 1302- IVR Transaccional- Oro | E45: 4 | F45: mes | G45: 965838 | H45: 3863352 | I45: 115416 | K45: 1302- IVR Transaccional- Oro | M45: 1 | N45: mes | O45: 1033445 | P45: 1033445 | Q45: 15716
A46: Modificación de artículo o servicio | B46: 7 | C46: 1313- Mensaje SMS Claro- Oro | E46: 4 | F46: mes | G46: 933300 | H46: 3733200 | I46: 115416 | K46: 1313- Mensaje SMS Claro- Oro | M46: 1 | N46: mes | O46: 998631 | P46: 998631 | Q46: 15716
A47: Modificación de artículo o servicio | B47: 8 | C47: 1314- Mensaje SMS Movistar- Oro | E47: 4 | F47: mes | G47: 274500 | H47: 1098000 | I47: 115416 | K47: 1314- Mensaje SMS Movistar- Oro | M47: 1 | N47: mes | O47: 293715 | P47: 293715 | Q47: 15716
A48: Modificación de artículo o servicio | B48: 9 | C48: 1315- Mensaje SMS Tigo- Oro | E48: 4 | F48: mes | G48: 164700 | H48: 658800 | I48: 115416 | K48: 1315- Mensaje SMS Tigo- Oro | M48: 1 | N48: mes | O48: 176229 | P48: 176229 | Q48: 15716
A49: Modificación de artículo o servicio | B49: 10 | C49: 1228- Minuto celular outbound Otros operadores-Oro | E49: 4 | F49: mes | G49: 167693 | H49: 670772 | I49: 115416 | K49: 1228- Minuto celular outbound Otros operadores-Oro | M49: 1 | N49: mes | O49: 0 | P49: 0 | Q49: 15716
A50: Modificación de artículo o servicio | B50: 11 | C50: 1225- Minuto celular outbound Claro- Oro | E50: 4 | F50: mes | G50: 447180 | H50: 1788720 | I50: 115416 | K50: 1225- Minuto celular outbound Claro- Oro | M50: 1 | N50: mes | O50: 478483 | P50: 478483 | Q50: 15716
A51: Modificación de artículo o servicio | B51: 12 | C51: 1226- Minuto ceclular outbound Movistar- Oro | E51: 4 | F51: mes | G51: 111795 | H51: 447180 | I51: 115416 | K51: 1226- Minuto ceclular outbound Movistar- Oro | M51: 1 | N51: mes | O51: 119621 | P51: 119621 | Q51: 15716
A52: Modificación de artículo o servicio | B52: 13 | C52: 1227- Minuto celular outbound Tigo- Oro | E52: 4 | F52: mes | G52: 111795 | H52: 447180 | I52: 115416 | K52: 1227- Minuto celular outbound Tigo- Oro | M52: 1 | N52: mes | O52: 119621 | P52: 119621 | Q52: 15716
A53: Modificación de artículo o servicio | B53: 14 | C53: 1228- Minuto celular outbound Otros operadores-Oro | E53: 4 | F53: mes | G53: 167693 | H53: 670772 | I53: 115416 | K53: 1228- Minuto celular outbound Otros operadores-Oro | M53: 1 | N53: mes | O53: 179432 | P53: 179432 | Q53: 15716
A54: Modificación de artículo o servicio | B54: 15 | C54: 1326- servicio adicional de entrenamiento- oro- 2 entrenamiento por agente | E54: 4 | F54: mes | G54: 100355 | H54: 401420 | I54: 115416 | K54: 1326- servicio adicional de entrenamiento- oro- 2 entrenamiento por agente | M54: 1 | N54: mes | O54: 107380 | P54: 107380 | Q54: 15716
A55: Modificación de artículo o servicio | B55: 16 | C55: 1218- Minuto llamada Bogotá Outbound- Oro | E55: 4 | F55: mes | G55: 60668 | H55: 242672 | I55: 115416 | K55: 1218- Minuto llamada Bogotá Outbound- Oro | M55: 1 | N55: mes | O55: 64915 | P55: 64915 | Q55: 15716
A56: Modificación de artículo o servicio | B56: 17 | C56: 1230- Transferencia de llamadas- Oro | E56: 4 | F56: mes | G56: 4519 | H56: 18076 | I56: 115416 | K56: 1230- Transferencia de llamadas- Oro | M56: 1 | N56: mes | O56: 4835 | P56: 4835 | Q56: 15716
A57: Modificación de artículo o servicio | B57: 18 | C57: 1220- Minuto larga distancia nacional outbound- Oro | E57: 4 | F57: mes | G57: 33579 | H57: =E57*G57 -> 134316 | I57: 115416 | K57: =C57 -> 1220- Minuto larga distancia nacional outbound- Oro | M57: 1 | N57: mes | O57: 35930 | P57: =M57*O57 -> 35930 | Q57: 15716
A58: Modificación de artículo o servicio | B58: 19 | C58: 1300- Minuto IVR audio texto - oro | E58: 4 | F58: mes | G58: 15813 | H58: 63252 | I58: 115416 | K58: 1300- Minuto IVR audio texto - oro | M58: 1 | N58: mes | O58: 16920 | P58: 16920 | Q58: 15716
A59: Modificación de artículo o servicio | B59: 20 | C59: 1496- virtual hold - oro | E59: 4 | F59: mes | G59: 418629 | H59: 1674516 | I59: 115416 | K59: 1496- virtual hold - oro | M59: 1 | N59: mes | O59: 447933 | P59: 447933 | Q59: 15716
A60: Modificación de artículo o servicio | B60: 21 | C60: 1232- Transferencia chat -Oro | E60: 4 | F60: mes | G60: 1624 | H60: =E60*G60 -> 6496 | I60: 115416 | K60: =C60 -> 1232- Transferencia chat -Oro | M60: 1 | O60: 1738 | P60: =M60*O60 -> 1738 | Q60: 15716
A61: Modificación de artículo o servicio | B61: 22 | C61: 1489- Redirección de llamadas o contactos por diversos canales a otro centro de contacto- Oro | E61: 4 | F61: mes | G61: 7888 | H61: =E61*G61 -> 31552 | I61: 115416 | K61: =C61 -> 1489- Redirección de llamadas o contactos por diversos canales a otro centro de contacto- Oro | M61: 1 | O61: 8440 | P61: =M61*O61 -> 8440 | Q61: 15716
A62: Modificación de artículo o servicio | B62: 23 | C62: 1494- Servicio SMS como CHAT | E62: 4 | F62: mes | G62: 9479 | H62: =E62*G62 -> 37916 | I62: 115416 | K62: =C62 -> 1494- Servicio SMS como CHAT | M62: 1 | O62: 10141 | P62: =M62*O62 -> 10141 | Q62: 15716
G64: TOTAL | H64: =SUM(H40:H62) -> 125261832 | O64: TOTAL | P64: =SUM(P40:P62) -> 33328108
K69: Valor total del IVA en la Orden de Compra: | N69: 77447553.28
B70: Firma ordenador del gasto | G70: Firma de Proveedor
K71: Valor total del AIU en la Orden de Compra:
A72: Nombre: | B72: ANDRES FELIPE STAPPER SEGRERA | F72: Nombre: | G72: PATRICIA HINCAPIE GIL
A73: Documento de Identidad: | B73: 80108.439 | E73: Documento de Identidad: | G73: 43,615,630 | K73: Valor total gravámenes adicionales en la Orden de Compra:
A75: Fecha Elaboracion: | B75: 2016-04-29 | K75: Valor total de la Orden de Compra: | N75: 484047208

Sheet Instructivo de Diligenciamiento
B7: Instrucciones de diligenciamiento: Colombia Compra Eficiente ha diseñado este formato para que las Entidades Compradoras puedan realizar aclaraciones, modificaciones, cancelaciones o liquidaciones de las Órdenes de Compra que estén en ejecución y vigentes. Para ello debe indicar: 1. Datos generales: Datos básicos como número de la Orden de Compra que requiere cambiar, número consecutivo de solicitud tenga en cuenta que la primera solicitud corresponderá a la número “1”, nombre de la Entidad Compradora, nombre de la persona que solicita las acciones, NIT de la Entidad Compradora y el nombre del Proveedor que ejecuta la Orden de Compra. 2. Tipo: Las Entidades pueden solicitar cuatro tipos de acciones respecto de las Órdenes de Compra: (i) Aclaraciones: Son las indicaciones de cambio de información que no afectan el plazo, el valor o las condiciones contractuales de las Órdenes de Compra como: redacción en las condiciones de entrega, errores de digitación o rectificación de la fecha de vencimiento. Estas aclaraciones no requieren de la aceptación del Proveedor. Sin embargo una vez realizada la aclaración en la Orden de Compra, la Entidad Compradora debe notificarle al Proveedor el cambio. (ii) Modificaciones: Son indicaciones de cambio en aumento o disminución de valor o plazo, aumento o disminución de los bienes o servicios solicitados, cambios en las condiciones de ejecución o datos que afecten la ejecución de la Orden de Compra. Solo en los casos de cambio de supervisor y datos de notificación como dirección o teléfono se puede omitir la firma del Proveedor. Sin embargo una vez realizada la modificación, la Entidad Compradora debe notificarle al Proveedor el cambio. (iii) Cancelación: Es la manifestación de la Entidad de no ejecutar la totalidad de la Orden de Compra la cual también debe ser aceptada por el Proveedor. (iv) Liquidación: Es el ajuste formal y definitivo de las obligaciones derivadas de la Orden de Compra para establecer las acreencias pendientes a favor o en contra de cada parte de la Orden de Compra, así como para aclarar la ejecución de la misma. Se efectúa, cuando aplique, dentro de los términos establecidos en cada Acuerdo Marco de Precios. Se requiere la solicitud por parte de la Entidad Compradora firmada por el Ordenador del Gasto y el representante legal del Proveedor, así como el informe del supervisor de la Orden de Compra. 3. Justificación: Las razones de la realización del cambio o la cancelación de la Orden de Compra. 4. Especificar las modificaciones solicitadas a la información general de la Orden de Compra o la modificación detallada de los bienes y servicios así: (i) Modificación de información general: Modificaciones a: (a) nombre del supervisor; (b) fecha de vencimiento de la Orden de Compra; (c) dirección y/o teléfono de la Entidad Compradora; o (d) Gravámenes adicionales (estampillas), en todos los campos debe diligenciar la información actual en la Orden de Compra y los nueva información. (ii) Modificación de los artículos y/o servicios: (a) Modificaciones a los artículos o servicios: Adicionar o disminuir en cantidades un producto que fue adquirido en la Orden de Compra inicial. La Entidad debe identificar en los campos de “información actual”: (i) el número de la línea del artículo que lo puede consultar en la Orden de Compra (ii) el artículo adquirido inicialmente; (iii) las unidades de medida; (iv) las cantidades adquiridas; (v) los precios de la compra; y (vi) la información presupuestal. Para modificar o agregar nuevos artículos la Entidad Compradora debe identificar en el campo “nueva información”: (i) la cantidad final requerida; (ii) unidad de medida; (iii) precio unitario acordado previamente con el Proveedor el cual debe respetar lo dispuesto en el contrato correspondiente (precio techo, precio piso, etc.) y (iv) la información presupuestal que respalda el cambio o la inclusión. (b) Agregar nuevos artículos o servicios: Ingresar nuevos artículos que no se tenían contemplados en la Orden de Compra inicial. La Entidad Compradora debe previamente solicitarle al Proveedor el precio del artículo, el cual debe respetar lo dispuesto en el contrato correspondiente (precio techo, precio piso, etc.) y la Entidad Compradora lo debe indicar en el formato en el campo “nueva información”. (c) Eliminar artículos o servicios: Descartar artículos que la Entidad Compradora determine que no va a requerir durante la ejecución de la Orden de Compra. Para eliminar artículos la Entidad debe identificar en los campos de “información actual”: (i) el número de la línea del artículo que lo puede consultar en la Orden de Compra (ii) el artículo adquirido inicialmente; (iii) las unidades de medida; (iv) las cantidades adquiridas; (v) los precios de la compra; y (vi) la información presupuestal. En esta sección la Entidad Compradora puede agregar tantas filas como artículos requiera modificar haciendo clic en el botón de Agregar registro o Eliminar registro. 5. Consolidado de valores: Indicar en el recuadro el valor total del IVA, AUI, gravámenes adicionales y total de la Orden de Compra, estos campos serán los valores finales que quedarán en la Orden de Compra después de la modificación, tenga en cuenta que el campo de IVA no aplica para los AMP de papelería, vehículos y SOAT y que el campo de AIU solo aplica para aseo y cafetería. 6. Firmas del documento: El ordenador del gasto de la Entidad Compradora debe firmar el documento y enviarlo al Proveedor para que lo acepte y firme, en caso de que así se requiera. El documento firmado debe ser enviado a través del aplicativo dispuesto por Colombia Compra Eficiente para realizar las acciones solicitadas. 7. Fecha de elaboración del documento: Corresponde a la fecha en la que la Entidad Compradora y el Proveedor llegaron a un acuerdo para realizar las acciones y se suscribe el documento, recuerde que para poder realizar modificaciones en las Órdenes de Compra las mismas se deben acordar dentro de la vigencia de la Orden de Compra. Si la Entidad Compradora requiere agregar archivos que estén relacionados con las acciones a realizar como: copia del CDP y/o aprobación de Vigencia Futura (VF) que soporta la adición, soportes documentales, correos, cartas, etc... debe publicarlos junto con el documento de solicitud de modificación suscrito en un único archivo Pdf, tenga en cuenta que Colombia Compra Eficiente únicamente realizara las modificaciones especificadas en el formato enviado por el aplicativo.

Sheet Listas (hidden)
A1: TipoDeModificacion | C1: Modificacion
A2: Modificación de la Orden de Compra | C2: Modificación de artículo o servicio
A3: Aclaración a la Orden de Compra | C3: Agregar nuevo artículo o servicio
A4: Cancelación de la Orden de Compra | C4: Eliminar artículo o servicio
A5: Liquidación de la Orden de Compra | C5: Ninguna
